[Event "Titled Tuesday Blitz April 25 Early 2023"]
[White "Koellner, Ruben Gideon"]
[Black "Tari, Aryan"]
[WhiteFideId "12993093"]
[BlackFideId "1510045"]
[WhiteElo "2314"]
[BlackElo "2561"]
[Result "1-0"]
[Round "10"]
[TimeControl "180+2"]
[Date "2023.04.25"]
[WhiteClock "0:00:02"]
[BlackClock "0:00:01"]

1. d4 {[%clk 0:03:00]}  Nf6 {[%clk 0:02:50]} 2. Nf3 {[%clk 0:03:00]}  b5 {[%clk 0:02:45]} 3. e3 {[%clk 0:02:58]}  a6 {[%clk 0:02:45]} 4. a4 {[%clk 0:02:58]}  b4 {[%clk 0:02:45]} 5. Nbd2 {[%clk 0:02:58]}  e6 {[%clk 0:02:44]} 6. Bd3 {[%clk 0:02:58]}  d5 {[%clk 0:02:41]} 7. e4 {[%clk 0:02:54]}  a5 {[%clk 0:02:22]} 8. c4 {[%clk 0:02:30]}  bxc3 {[%clk 0:01:54]} 9. bxc3 {[%clk 0:02:31]}  Ba6 {[%clk 0:01:55]} 10. Bxa6 {[%clk 0:02:25]}  Rxa6 {[%clk 0:01:54]} 11. e5 {[%clk 0:02:21]}  Nfd7 {[%clk 0:01:54]} 12. Ba3 {[%clk 0:02:19]}  Bxa3 {[%clk 0:01:53]} 13. Rxa3 {[%clk 0:02:20]}  O-O {[%clk 0:01:52]} 14. O-O {[%clk 0:02:18]}  Qe7 {[%clk 0:01:43]} 15. Rb3 {[%clk 0:02:18]}  Rb6 {[%clk 0:01:42]} 16. Qc2 {[%clk 0:02:17]}  Nc6 {[%clk 0:01:38]} 17. Rfb1 {[%clk 0:02:15]}  Rfb8 {[%clk 0:01:38]} 18. g3 {[%clk 0:02:13]}  h6 {[%clk 0:01:37]} 19. h4 {[%clk 0:02:10]}  Rxb3 {[%clk 0:01:29]} 20. Rxb3 {[%clk 0:02:09]}  Rb6 {[%clk 0:01:21]} 21. Rb5 {[%clk 0:02:02]}  Qa3 {[%clk 0:01:16]} 22. Qb3 {[%clk 0:01:54]}  Qa1+ {[%clk 0:00:52]} 23. Kg2 {[%clk 0:01:52]}  Na7 {[%clk 0:00:53]} 24. Rxb6 {[%clk 0:00:47]}  Nxb6 {[%clk 0:00:54]} 25. c4 {[%clk 0:00:48]}  Qxa4 {[%clk 0:00:50]} 26. cxd5 {[%clk 0:00:48]}  exd5 {[%clk 0:00:35]} 27. Qc3 {[%clk 0:00:24]}  Nb5 {[%clk 0:00:26]} 28. Qc6 {[%clk 0:00:19]}  Kf8 {[%clk 0:00:09]} 29. e6 {[%clk 0:00:19]}  fxe6 {[%clk 0:00:09]} 30. Qxe6 {[%clk 0:00:09]}  Nxd4 {[%clk 0:00:06]} 31. Qe5 {[%clk 0:00:04]}  Nxf3 {[%clk 0:00:06]} 32. Nxf3 {[%clk 0:00:05]}  Qd7 {[%clk 0:00:04]} 33. Nd4 {[%clk 0:00:04]}  Kg8 {[%clk 0:00:03]} 34. Nf5 {[%clk 0:00:04]}  Qf7 {[%clk 0:00:02]} 35. Ne7+ {[%clk 0:00:04]}  Kh8 {[%clk 0:00:02]} 36. Qxc7 {[%clk 0:00:03]}  Nc4 {[%clk 0:00:02]} 37. Qd8+ {[%clk 0:00:03]}  Kh7 {[%clk 0:00:02]} 38. Nxd5 {[%clk 0:00:03]}  Qb7 {[%clk 0:00:01]} 39. Kh2 {[%clk 0:00:02]}  a4 {[%clk 0:00:01]} 40. Ne7 {[%clk 0:00:02]} 1-0


[Site "https://www.chess.com"]

[Event "Titled Tuesday Blitz April 25 Early 2023"]
[White "TartineDeNutella"]
[Black "Quesada Perez, Yuniesky"]
[BlackFideId "3504409"]
[WhiteElo "2633"]
[BlackElo "2585"]
[Result "0-1"]
[Round "10"]
[TimeControl "180+2"]
[Date "2023.04.25"]
[WhiteClock "0:00:17"]
[BlackClock "0:00:16"]

1. d4 {[%clk 0:03:00]}  d5 {[%clk 0:02:59]} 2. c4 {[%clk 0:03:00]}  c6 {[%clk 0:02:59]} 3. Nc3 {[%clk 0:03:00]}  Nf6 {[%clk 0:02:58]} 4. e3 {[%clk 0:03:00]}  e6 {[%clk 0:02:55]} 5. cxd5 {[%clk 0:02:59]}  exd5 {[%clk 0:02:54]} 6. Nge2 {[%clk 0:02:59]}  Bd6 {[%clk 0:02:54]} 7. g3 {[%clk 0:02:59]}  O-O {[%clk 0:02:53]} 8. Bg2 {[%clk 0:02:59]}  Re8 {[%clk 0:02:50]} 9. O-O {[%clk 0:03:00]}  h5 {[%clk 0:02:47]} 10. h4 {[%clk 0:02:54]}  Bg4 {[%clk 0:02:44]} 11. f3 {[%clk 0:02:54]}  Be6 {[%clk 0:02:39]} 12. Nf4 {[%clk 0:02:54]}  Nbd7 {[%clk 0:02:37]} 13. Nce2 {[%clk 0:02:54]}  Nf8 {[%clk 0:02:36]} 14. Bd2 {[%clk 0:02:52]}  Bf5 {[%clk 0:02:35]} 15. Rc1 {[%clk 0:02:49]}  Re7 {[%clk 0:02:35]} 16. b4 {[%clk 0:02:48]}  Ng6 {[%clk 0:02:26]} 17. Qb3 {[%clk 0:02:46]}  a6 {[%clk 0:02:21]} 18. a4 {[%clk 0:02:44]}  Nxf4 {[%clk 0:02:14]} 19. Nxf4 {[%clk 0:02:44]}  Qd7 {[%clk 0:02:13]} 20. Kh2 {[%clk 0:02:42]}  b5 {[%clk 0:02:03]} 21. axb5 {[%clk 0:02:41]}  axb5 {[%clk 0:02:03]} 22. Ra1 {[%clk 0:02:40]}  Ree8 {[%clk 0:02:01]} 23. Qc3 {[%clk 0:02:26]}  Qb7 {[%clk 0:01:51]} 24. Nd3 {[%clk 0:02:22]}  Nd7 {[%clk 0:01:44]} 25. Nf4 {[%clk 0:02:11]}  g6 {[%clk 0:01:43]} 26. Rae1 {[%clk 0:02:07]}  Nf6 {[%clk 0:01:29]} 27. Qb3 {[%clk 0:02:03]}  Ra4 {[%clk 0:01:28]} 28. Bc3 {[%clk 0:01:20]}  Qa8 {[%clk 0:01:10]} 29. Bd2 {[%clk 0:00:47]}  Ra3 {[%clk 0:01:05]} 30. Qb2 {[%clk 0:00:46]}  Ra2 {[%clk 0:01:04]} 31. Qc1 {[%clk 0:00:45]}  Rc2 {[%clk 0:01:01]} 32. Qd1 {[%clk 0:00:46]}  Qa2 {[%clk 0:01:00]} 33. Rf2 {[%clk 0:00:37]}  Bxb4 {[%clk 0:00:48]} 34. Bxb4 {[%clk 0:00:37]}  Rxf2 {[%clk 0:00:47]} 35. Bd6 {[%clk 0:00:22]}  Rb2 {[%clk 0:00:43]} 36. Be5 {[%clk 0:00:21]}  Nd7 {[%clk 0:00:43]} 37. Bd6 {[%clk 0:00:22]}  Rb1 {[%clk 0:00:38]} 38. Qe2 {[%clk 0:00:20]}  Qxe2 {[%clk 0:00:33]} 39. Rxe2 {[%clk 0:00:21]}  Nb6 {[%clk 0:00:33]} 40. e4 {[%clk 0:00:21]}  Nc4 {[%clk 0:00:29]} 41. Bc5 {[%clk 0:00:20]}  dxe4 {[%clk 0:00:25]} 42. fxe4 {[%clk 0:00:20]}  Bg4 {[%clk 0:00:25]} 43. Rf2 {[%clk 0:00:21]}  Ne3 {[%clk 0:00:25]} 44. e5 {[%clk 0:00:21]}  Nxg2 {[%clk 0:00:25]} 45. Nxg2 {[%clk 0:00:22]}  b4 {[%clk 0:00:24]} 46. Ne3 {[%clk 0:00:22]}  Be6 {[%clk 0:00:24]} 47. Ng2 {[%clk 0:00:21]}  b3 {[%clk 0:00:24]} 48. Nf4 {[%clk 0:00:21]}  Ra1 {[%clk 0:00:20]} 49. Nd3 {[%clk 0:00:18]}  Ra2 {[%clk 0:00:20]} 50. Nb2 {[%clk 0:00:18]}  Rea8 {[%clk 0:00:19]} 51. Kg1 {[%clk 0:00:18]}  Rxb2 {[%clk 0:00:16]} 52. Rxb2 {[%clk 0:00:19]}  Ra1+ {[%clk 0:00:16]} 53. Kf2 {[%clk 0:00:17]}  Ra2 {[%clk 0:00:16]} 0-1


[Site "https://www.chess.com"]

[Event "Titled Tuesday Blitz April 25 Early 2023"]
[White "djokovic74"]
[Black "Azarov, Sergei"]
[BlackFideId "13501470"]
[WhiteElo "2626"]
[BlackElo "2475"]
[Result "1-0"]
[Round "10"]
[TimeControl "180+2"]
[Date "2023.04.25"]
[WhiteClock "0:00:53"]
[BlackClock "0:00:13"]

1. e4 {[%clk 0:03:00]}  c5 {[%clk 0:02:58]} 2. Nf3 {[%clk 0:03:01]}  d6 {[%clk 0:02:59]} 3. d4 {[%clk 0:03:01]}  cxd4 {[%clk 0:02:59]} 4. Nxd4 {[%clk 0:03:02]}  Nf6 {[%clk 0:03:00]} 5. Nc3 {[%clk 0:03:03]}  g6 {[%clk 0:03:00]} 6. Be3 {[%clk 0:03:03]}  Bg7 {[%clk 0:03:01]} 7. f3 {[%clk 0:03:03]}  O-O {[%clk 0:03:01]} 8. Qd2 {[%clk 0:03:04]}  Nc6 {[%clk 0:03:02]} 9. O-O-O {[%clk 0:03:05]}  d5 {[%clk 0:03:02]} 10. Qe1 {[%clk 0:03:05]}  e5 {[%clk 0:02:59]} 11. Nxc6 {[%clk 0:03:05]}  bxc6 {[%clk 0:03:00]} 12. exd5 {[%clk 0:03:06]}  Nxd5 {[%clk 0:03:00]} 13. Bc4 {[%clk 0:03:06]}  Be6 {[%clk 0:03:00]} 14. Ne4 {[%clk 0:03:06]}  Qc7 {[%clk 0:02:55]} 15. Bc5 {[%clk 0:03:06]}  Rfd8 {[%clk 0:02:51]} 16. Qh4 {[%clk 0:03:06]}  h6 {[%clk 0:02:44]} 17. g4 {[%clk 0:03:06]}  Nf4 {[%clk 0:02:24]} 18. Bxe6 {[%clk 0:03:06]}  Nxe6 {[%clk 0:02:24]} 19. Qe7 {[%clk 0:03:04]}  Qa5 {[%clk 0:02:00]} 20. Rxd8+ {[%clk 0:03:01]}  Rxd8 {[%clk 0:01:59]} 21. Qxa7 {[%clk 0:03:01]}  Qb5 {[%clk 0:01:40]} 22. Re1 {[%clk 0:02:15]}  Rd5 {[%clk 0:01:13]} 23. Be7 {[%clk 0:01:38]}  Nd4 {[%clk 0:00:16]} 24. Qa8+ {[%clk 0:01:02]}  Kh7 {[%clk 0:00:13]} 25. Nf6+ {[%clk 0:00:53]} 1-0


[Site "https://www.chess.com"]

[Event "Titled Tuesday Blitz April 25 Early 2023"]
[White "Mamedov, Edgar"]
[Black "Kosakowski, Jakub"]
[WhiteFideId "13739980"]
[BlackFideId "1185080"]
[WhiteElo "2330"]
[BlackElo "2488"]
[Result "1/2-1/2"]
[Round "10"]
[TimeControl "180+2"]
[Date "2023.04.25"]
[WhiteClock "0:00:05"]
[BlackClock "0:00:40"]

1. d4 {[%clk 0:02:58]}  Nf6 {[%clk 0:02:53]} 2. Bg5 {[%clk 0:02:58]}  d5 {[%clk 0:02:52]} 3. e3 {[%clk 0:02:58]}  c6 {[%clk 0:02:50]} 4. Nd2 {[%clk 0:02:56]}  Bg4 {[%clk 0:02:49]} 5. Ngf3 {[%clk 0:02:54]}  Nbd7 {[%clk 0:02:49]} 6. Be2 {[%clk 0:02:52]}  e6 {[%clk 0:02:49]} 7. O-O {[%clk 0:02:52]}  Be7 {[%clk 0:02:49]} 8. c4 {[%clk 0:02:50]}  O-O {[%clk 0:02:49]} 9. Qc2 {[%clk 0:02:46]}  Rc8 {[%clk 0:02:38]} 10. Rfd1 {[%clk 0:02:36]}  c5 {[%clk 0:02:34]} 11. dxc5 {[%clk 0:02:35]}  Nxc5 {[%clk 0:02:33]} 12. Nd4 {[%clk 0:02:27]}  Bxe2 {[%clk 0:02:17]} 13. Nxe2 {[%clk 0:02:26]}  h6 {[%clk 0:02:17]} 14. Bf4 {[%clk 0:02:23]}  Nce4 {[%clk 0:02:13]} 15. Nxe4 {[%clk 0:02:00]}  Nxe4 {[%clk 0:02:14]} 16. Qa4 {[%clk 0:02:00]}  Rxc4 {[%clk 0:02:10]} 17. Qxa7 {[%clk 0:02:00]}  Rc2 {[%clk 0:02:09]} 18. Re1 {[%clk 0:01:59]}  Bb4 {[%clk 0:02:08]} 19. Rac1 {[%clk 0:01:47]}  Rxb2 {[%clk 0:02:04]} 20. Rb1 {[%clk 0:01:39]}  Bxe1 {[%clk 0:02:01]} 21. Rxb2 {[%clk 0:01:38]}  Bxf2+ {[%clk 0:02:01]} 22. Kf1 {[%clk 0:01:38]}  Bh4 {[%clk 0:02:01]} 23. Qxb7 {[%clk 0:01:35]}  Qa5 {[%clk 0:01:40]} 24. g3 {[%clk 0:01:25]}  Bf6 {[%clk 0:01:39]} 25. Rc2 {[%clk 0:01:22]}  Nd2+ {[%clk 0:01:33]} 26. Kg2 {[%clk 0:00:57]}  Nc4 {[%clk 0:01:33]} 27. Qc6 {[%clk 0:00:51]}  g5 {[%clk 0:01:31]} 28. Kf2 {[%clk 0:00:32]}  gxf4 {[%clk 0:01:30]} 29. Nxf4 {[%clk 0:00:32]}  Qa7 {[%clk 0:01:22]} 30. Re2 {[%clk 0:00:28]}  Nxe3 {[%clk 0:01:19]} 31. Kf3 {[%clk 0:00:26]}  Nf5 {[%clk 0:01:18]} 32. Nxe6 {[%clk 0:00:20]}  fxe6 {[%clk 0:01:16]} 33. Qxe6+ {[%clk 0:00:20]}  Kg7 {[%clk 0:01:16]} 34. Qxf5 {[%clk 0:00:20]}  Be7 {[%clk 0:01:15]} 35. Kg4 {[%clk 0:00:18]}  Rxf5 {[%clk 0:01:14]} 36. Kxf5 {[%clk 0:00:19]}  Qd7+ {[%clk 0:01:14]} 37. Kf4 {[%clk 0:00:18]}  Bd6+ {[%clk 0:01:14]} 38. Kf3 {[%clk 0:00:17]}  Qf5+ {[%clk 0:01:14]} 39. Kg2 {[%clk 0:00:17]}  d4 {[%clk 0:01:14]} 40. Rf2 {[%clk 0:00:17]}  Qd5+ {[%clk 0:01:14]} 41. Kh3 {[%clk 0:00:17]}  d3 {[%clk 0:01:15]} 42. a4 {[%clk 0:00:17]}  d2 {[%clk 0:01:15]} 43. Rxd2 {[%clk 0:00:18]}  Qxd2 {[%clk 0:01:15]} 44. a5 {[%clk 0:00:18]}  Qxa5 {[%clk 0:01:15]} 45. Kg2 {[%clk 0:00:18]}  Qd2+ {[%clk 0:01:15]} 46. Kh3 {[%clk 0:00:17]}  h5 {[%clk 0:01:16]} 47. Kh4 {[%clk 0:00:16]}  Be7+ {[%clk 0:01:16]} 48. Kh3 {[%clk 0:00:15]}  Qe2 {[%clk 0:01:16]} 49. g4 {[%clk 0:00:14]}  hxg4+ {[%clk 0:01:15]} 50. Kg3 {[%clk 0:00:14]}  Bd6+ {[%clk 0:01:16]} 51. Kh4 {[%clk 0:00:14]}  Bxh2 {[%clk 0:01:16]} 52. Kg5 {[%clk 0:00:11]}  Bd6 {[%clk 0:01:16]} 53. Kh4 {[%clk 0:00:10]}  g3 {[%clk 0:01:16]} 54. Kh3 {[%clk 0:00:07]}  g2 {[%clk 0:01:16]} 55. Kh4 {[%clk 0:00:07]}  Qf2+ {[%clk 0:01:17]} 56. Kh3 {[%clk 0:00:07]}  Qf3+ {[%clk 0:01:17]} 57. Kh4 {[%clk 0:00:07]}  Bg3+ {[%clk 0:01:17]} 58. Kg5 {[%clk 0:00:07]}  Qe4 {[%clk 0:01:14]} 59. Kh5 {[%clk 0:00:07]}  g1=N {[%clk 0:01:09]} 60. Kg5 {[%clk 0:00:07]}  Qf5+ {[%clk 0:00:42]} 61. Kxf5 {[%clk 0:00:06]}  Bc7 {[%clk 0:00:43]} 62. Kg4 {[%clk 0:00:05]}  Kg6 {[%clk 0:00:42]} 63. Kh4 {[%clk 0:00:04]}  Kf5 {[%clk 0:00:40]} 64. Kh5 {[%clk 0:00:04]}  Nf3 {[%clk 0:00:37]} 65. Kh6 {[%clk 0:00:03]}  Ng5 {[%clk 0:00:37]} 66. Kh5 {[%clk 0:00:03]}  Bg3 {[%clk 0:00:35]} 67. Kh6 {[%clk 0:00:03]}  Ne6 {[%clk 0:00:36]} 68. Kh5 {[%clk 0:00:03]}  Ng7+ {[%clk 0:00:36]} 69. Kh6 {[%clk 0:00:04]}  Kf6 {[%clk 0:00:37]} 70. Kh7 {[%clk 0:00:04]}  Kf7 {[%clk 0:00:37]} 71. Kh8 {[%clk 0:00:04]}  Bf4 {[%clk 0:00:38]} 72. Kh7 {[%clk 0:00:04]}  Ne6 {[%clk 0:00:39]} 73. Kh8 {[%clk 0:00:05]}  Nf8 {[%clk 0:00:40]} 1/2-1/2


[Site "https://www.chess.com"]

[Event "Titled Tuesday Blitz April 25 Early 2023"]
[White "Weishaeutel, Moritz"]
[Black "Starozhilov, Leonid"]
[WhiteFideId "12967300"]
[BlackFideId "14106752"]
[WhiteElo "2301"]
[BlackElo "2352"]
[Result "1-0"]
[Round "10"]
[TimeControl "180+2"]
[Date "2023.04.25"]
[WhiteClock "0:00:04"]
[BlackClock "0:00:04"]

1. e4 {[%clk 0:02:37]}  Nc6 {[%clk 0:02:58]} 2. Nf3 {[%clk 0:02:36]}  d6 {[%clk 0:02:59]} 3. d4 {[%clk 0:02:36]}  Nf6 {[%clk 0:03:00]} 4. d5 {[%clk 0:02:33]}  Nb8 {[%clk 0:03:00]} 5. Nc3 {[%clk 0:02:32]}  Bg4 {[%clk 0:02:59]} 6. h3 {[%clk 0:02:30]}  Bxf3 {[%clk 0:02:59]} 7. Qxf3 {[%clk 0:02:30]}  Nbd7 {[%clk 0:03:00]} 8. Bg5 {[%clk 0:02:30]}  c6 {[%clk 0:02:58]} 9. O-O-O {[%clk 0:02:28]}  Rc8 {[%clk 0:02:57]} 10. Bxf6 {[%clk 0:02:21]}  gxf6 {[%clk 0:02:56]} 11. e5 {[%clk 0:02:21]}  Nxe5 {[%clk 0:02:53]} 12. Qg3 {[%clk 0:02:20]}  h5 {[%clk 0:02:38]} 13. f4 {[%clk 0:02:19]}  h4 {[%clk 0:02:37]} 14. Qf2 {[%clk 0:02:17]}  Ng6 {[%clk 0:02:27]} 15. Qxa7 {[%clk 0:02:16]}  Qc7 {[%clk 0:02:10]} 16. Bd3 {[%clk 0:01:58]}  Nxf4 {[%clk 0:01:57]} 17. Bf5 {[%clk 0:01:59]}  e6 {[%clk 0:01:57]} 18. dxe6 {[%clk 0:01:56]}  fxe6 {[%clk 0:01:58]} 19. Rhe1 {[%clk 0:01:22]}  Kf7 {[%clk 0:01:54]} 20. Bg4 {[%clk 0:01:06]}  f5 {[%clk 0:01:46]} 21. Bf3 {[%clk 0:00:55]}  Bg7 {[%clk 0:01:37]} 22. Qe3 {[%clk 0:00:52]}  d5 {[%clk 0:01:36]} 23. Ne2 {[%clk 0:00:36]}  Nxg2 {[%clk 0:01:27]} 24. Qf2 {[%clk 0:00:11]}  Nxe1 {[%clk 0:01:27]} 25. Rxe1 {[%clk 0:00:12]}  Bf6 {[%clk 0:01:20]} 26. Kb1 {[%clk 0:00:11]}  Rcg8 {[%clk 0:00:59]} 27. Nf4 {[%clk 0:00:11]}  Be5 {[%clk 0:00:23]} 28. Bh5+ {[%clk 0:00:08]}  Rxh5 {[%clk 0:00:23]} 29. Nxh5 {[%clk 0:00:09]}  Bg3 {[%clk 0:00:23]} 30. Nxg3 {[%clk 0:00:07]}  Qxg3 {[%clk 0:00:23]} 31. Qe2 {[%clk 0:00:07]}  Rg6 {[%clk 0:00:16]} 32. a3 {[%clk 0:00:01]}  e5 {[%clk 0:00:11]} 33. Rf1 {[%clk 0:00:01]}  Kf6 {[%clk 0:00:09]} 34. Qh5 {[%clk 0:00:01]}  f4 {[%clk 0:00:06]} 35. Qh8+ {[%clk 0:00:01]}  Kf5 {[%clk 0:00:03]} 36. Qc8+ {[%clk 0:00:01]}  Kf6 {[%clk 0:00:04]} 37. Qxb7 {[%clk 0:00:02]}  Kg5 {[%clk 0:00:03]} 38. Qc8 {[%clk 0:00:02]}  Kh6 {[%clk 0:00:02]} 39. Qh8+ {[%clk 0:00:01]}  Kg5 {[%clk 0:00:02]} 40. Qd8+ {[%clk 0:00:02]}  Kh6 {[%clk 0:00:03]} 41. Qh8+ {[%clk 0:00:03]}  Kg5 {[%clk 0:00:03]} 42. Qxe5+ {[%clk 0:00:03]}  Kh6 {[%clk 0:00:04]} 43. Rxf4 {[%clk 0:00:04]}  Qg1+ {[%clk 0:00:02]} 44. Ka2 {[%clk 0:00:03]}  Qg3 {[%clk 0:00:02]} 45. Qh8+ {[%clk 0:00:03]}  Kg5 {[%clk 0:00:02]} 46. Rg4+ {[%clk 0:00:04]}  Qxg4 {[%clk 0:00:02]} 47. hxg4 {[%clk 0:00:04]}  Kxg4 {[%clk 0:00:03]} 48. Qe8 {[%clk 0:00:04]}  Rg5 {[%clk 0:00:03]} 49. Qxc6 {[%clk 0:00:04]}  h3 {[%clk 0:00:03]} 50. Qe6+ {[%clk 0:00:05]}  Kg3 {[%clk 0:00:03]} 51. Qe3+ {[%clk 0:00:05]}  Kg4 {[%clk 0:00:03]} 52. Qg1+ {[%clk 0:00:05]}  Kh4 {[%clk 0:00:03]} 53. Qf2+ {[%clk 0:00:06]}  Kg4 {[%clk 0:00:03]} 54. a4 {[%clk 0:00:06]}  Rf5 {[%clk 0:00:04]} 55. Qe2+ {[%clk 0:00:05]}  Kg3 {[%clk 0:00:04]} 56. Qd3+ {[%clk 0:00:04]}  Kg4 {[%clk 0:00:03]} 57. Qe2+ {[%clk 0:00:04]}  Kg3 {[%clk 0:00:04]} 58. Qe1+ {[%clk 0:00:04]} 1-0


[Site "https://www.chess.com"]

[Event "Titled Tuesday Blitz April 25 Early 2023"]
[White "Halkias, Stelios"]
[Black "Dzagnidze, Nana"]
[WhiteFideId "4201809"]
[BlackFideId "13601903"]
[WhiteElo "2451"]
[BlackElo "2406"]
[Result "1/2-1/2"]
[Round "10"]
[TimeControl "180+2"]
[Date "2023.04.25"]
[WhiteClock "0:00:08"]
[BlackClock "0:00:03"]

1. c4 {[%clk 0:03:00]}  e6 {[%clk 0:02:58]} 2. Nf3 {[%clk 0:03:00]}  d5 {[%clk 0:02:58]} 3. d4 {[%clk 0:03:00]}  Nf6 {[%clk 0:02:58]} 4. g3 {[%clk 0:03:00]}  dxc4 {[%clk 0:02:58]} 5. Bg2 {[%clk 0:03:00]}  c5 {[%clk 0:02:58]} 6. O-O {[%clk 0:02:59]}  Nc6 {[%clk 0:02:58]} 7. Ne5 {[%clk 0:02:59]}  Bd7 {[%clk 0:02:54]} 8. Nxc4 {[%clk 0:02:56]}  cxd4 {[%clk 0:02:51]} 9. Bf4 {[%clk 0:02:56]}  Nd5 {[%clk 0:02:33]} 10. Nd6+ {[%clk 0:02:56]}  Bxd6 {[%clk 0:02:32]} 11. Bxd6 {[%clk 0:02:56]}  Bc8 {[%clk 0:02:30]} 12. Ba3 {[%clk 0:02:52]}  Nde7 {[%clk 0:02:26]} 13. Nd2 {[%clk 0:02:50]}  O-O {[%clk 0:02:25]} 14. Rc1 {[%clk 0:02:46]}  Bd7 {[%clk 0:02:17]} 15. Qb3 {[%clk 0:02:31]}  Re8 {[%clk 0:01:53]} 16. Qxb7 {[%clk 0:02:13]}  Rb8 {[%clk 0:01:52]} 17. Qa6 {[%clk 0:02:13]}  Nb4 {[%clk 0:01:40]} 18. Qxa7 {[%clk 0:01:58]}  Bc6 {[%clk 0:01:22]} 19. Bxb4 {[%clk 0:01:31]}  Bxg2 {[%clk 0:01:21]} 20. Kxg2 {[%clk 0:01:31]}  Rxb4 {[%clk 0:01:14]} 21. b3 {[%clk 0:01:28]}  Rb8 {[%clk 0:00:49]} 22. Nf3 {[%clk 0:01:26]}  Ra8 {[%clk 0:00:44]} 23. Qxd4 {[%clk 0:01:24]}  Qxd4 {[%clk 0:00:43]} 24. Nxd4 {[%clk 0:01:23]}  Rxa2 {[%clk 0:00:44]} 25. Rc2 {[%clk 0:01:11]}  Rxc2 {[%clk 0:00:32]} 26. Nxc2 {[%clk 0:01:11]}  Rb8 {[%clk 0:00:32]} 27. Rb1 {[%clk 0:01:03]}  Nd5 {[%clk 0:00:32]} 28. b4 {[%clk 0:01:01]}  Nc3 {[%clk 0:00:30]} 29. Rb3 {[%clk 0:00:48]}  Nxe2 {[%clk 0:00:26]} 30. b5 {[%clk 0:00:48]}  Kf8 {[%clk 0:00:23]} 31. Na3 {[%clk 0:00:31]}  Ke7 {[%clk 0:00:16]} 32. Rb4 {[%clk 0:00:27]}  Nc3 {[%clk 0:00:16]} 33. Rc4 {[%clk 0:00:24]}  Nd5 {[%clk 0:00:12]} 34. Rc6 {[%clk 0:00:24]}  h5 {[%clk 0:00:10]} 35. h4 {[%clk 0:00:19]}  Kd7 {[%clk 0:00:10]} 36. Ra6 {[%clk 0:00:19]}  Rb7 {[%clk 0:00:08]} 37. Nc4 {[%clk 0:00:16]}  Rxb5 {[%clk 0:00:04]} 38. Ne5+ {[%clk 0:00:15]}  Ke7 {[%clk 0:00:02]} 39. Ra7+ {[%clk 0:00:15]}  Kf6 {[%clk 0:00:03]} 40. f4 {[%clk 0:00:11]}  Ne7 {[%clk 0:00:01]} 41. Nd7+ {[%clk 0:00:09]}  Kg6 {[%clk 0:00:01]} 42. Ne5+ {[%clk 0:00:09]}  Kf6 {[%clk 0:00:01]} 43. Nd7+ {[%clk 0:00:09]}  Kg6 {[%clk 0:00:01]} 44. Nf8+ {[%clk 0:00:06]}  Kf6 {[%clk 0:00:02]} 45. Nh7+ {[%clk 0:00:06]}  Kg6 {[%clk 0:00:02]} 46. Rxe7 {[%clk 0:00:06]}  Kxh7 {[%clk 0:00:02]} 47. Rxf7 {[%clk 0:00:07]}  Kg6 {[%clk 0:00:02]} 48. Re7 {[%clk 0:00:08]}  Kf6 {[%clk 0:00:03]} 49. Re8 {[%clk 0:00:08]}  Rb3 {[%clk 0:00:02]} 50. Kh3 {[%clk 0:00:09]}  g6 {[%clk 0:00:02]} 51. Rf8+ {[%clk 0:00:09]}  Ke7 {[%clk 0:00:03]} 52. Rg8 {[%clk 0:00:09]}  Kf7 {[%clk 0:00:03]} 53. Rc8 {[%clk 0:00:10]}  Kf6 {[%clk 0:00:03]} 54. Rc6 {[%clk 0:00:10]}  Rb2 {[%clk 0:00:03]} 55. Rc5 {[%clk 0:00:08]} 1/2-1/2


[Site "https://www.chess.com"]

[Event "Titled Tuesday Blitz April 25 Early 2023"]
[White "Leenhouts, Koen"]
[Black "Prohaszka, Peter"]
[WhiteFideId "1008439"]
[BlackFideId "726265"]
[WhiteElo "2409"]
[BlackElo "2626"]
[Result "1-0"]
[Round "10"]
[TimeControl "180+2"]
[Date "2023.04.25"]
[WhiteClock "0:00:07"]
[BlackClock "0:00:07"]

1. d4 {[%clk 0:03:00]}  d5 {[%clk 0:02:55]} 2. c4 {[%clk 0:03:00]}  e6 {[%clk 0:02:49]} 3. Nc3 {[%clk 0:03:01]}  a6 {[%clk 0:02:48]} 4. cxd5 {[%clk 0:02:58]}  exd5 {[%clk 0:02:49]} 5. Bf4 {[%clk 0:02:57]}  c6 {[%clk 0:02:47]} 6. Nf3 {[%clk 0:02:55]}  Bd6 {[%clk 0:02:47]} 7. e3 {[%clk 0:02:55]}  Bxf4 {[%clk 0:02:39]} 8. exf4 {[%clk 0:02:56]}  Bg4 {[%clk 0:02:35]} 9. Be2 {[%clk 0:02:36]}  Bxf3 {[%clk 0:02:35]} 10. Bxf3 {[%clk 0:02:36]}  Nd7 {[%clk 0:02:34]} 11. O-O {[%clk 0:02:32]}  Ne7 {[%clk 0:02:33]} 12. Re1 {[%clk 0:02:29]}  O-O {[%clk 0:02:33]} 13. Qd2 {[%clk 0:02:18]}  Nf6 {[%clk 0:02:30]} 14. Re2 {[%clk 0:02:11]}  Nf5 {[%clk 0:02:25]} 15. g3 {[%clk 0:02:05]}  Re8 {[%clk 0:02:07]} 16. Re5 {[%clk 0:02:04]}  Nd6 {[%clk 0:02:02]} 17. Rae1 {[%clk 0:01:58]}  Qd7 {[%clk 0:01:57]} 18. b3 {[%clk 0:01:52]}  Rad8 {[%clk 0:01:47]} 19. Kg2 {[%clk 0:01:47]}  Qc7 {[%clk 0:01:42]} 20. Qc2 {[%clk 0:01:27]}  Qb8 {[%clk 0:01:32]} 21. h4 {[%clk 0:01:24]}  Nd7 {[%clk 0:01:32]} 22. R5e3 {[%clk 0:01:11]}  Rxe3 {[%clk 0:01:31]} 23. Rxe3 {[%clk 0:01:10]}  Re8 {[%clk 0:01:25]} 24. Qe2 {[%clk 0:01:05]}  Rxe3 {[%clk 0:01:21]} 25. fxe3 {[%clk 0:01:04]}  Nf6 {[%clk 0:01:19]} 26. g4 {[%clk 0:01:04]}  Qe8 {[%clk 0:01:19]} 27. g5 {[%clk 0:01:03]}  Nfe4 {[%clk 0:01:17]} 28. Bxe4 {[%clk 0:01:03]}  Nxe4 {[%clk 0:01:05]} 29. Nxe4 {[%clk 0:00:56]}  Qxe4+ {[%clk 0:01:06]} 30. Kg3 {[%clk 0:00:53]}  Kf8 {[%clk 0:00:53]} 31. Kf2 {[%clk 0:00:45]}  Qf5 {[%clk 0:00:48]} 32. Qd2 {[%clk 0:00:41]}  Qe6 {[%clk 0:00:25]} 33. Qb4+ {[%clk 0:00:40]}  Qe7 {[%clk 0:00:26]} 34. Qb6 {[%clk 0:00:35]}  h5 {[%clk 0:00:24]} 35. b4 {[%clk 0:00:33]}  Qd7 {[%clk 0:00:21]} 36. a4 {[%clk 0:00:23]}  Ke8 {[%clk 0:00:20]} 37. Ke1 {[%clk 0:00:19]}  f6 {[%clk 0:00:20]} 38. Kd2 {[%clk 0:00:18]}  Kf7 {[%clk 0:00:20]} 39. Qa7 {[%clk 0:00:15]}  Qe7 {[%clk 0:00:19]} 40. Qb8 {[%clk 0:00:14]}  Qxb4+ {[%clk 0:00:19]} 41. Ke2 {[%clk 0:00:14]}  Qe7 {[%clk 0:00:13]} 42. Qc8 {[%clk 0:00:12]}  fxg5 {[%clk 0:00:10]} 43. hxg5 {[%clk 0:00:09]}  g6 {[%clk 0:00:09]} 44. a5 {[%clk 0:00:09]}  Kg7 {[%clk 0:00:08]} 45. Kf2 {[%clk 0:00:07]}  Kh7 {[%clk 0:00:07]} 46. Ke2 {[%clk 0:00:07]}  Kg7 {[%clk 0:00:07]} 47. Kf2 {[%clk 0:00:07]}  Kf7 {[%clk 0:00:07]} 48. Ke2 {[%clk 0:00:07]}  h4 {[%clk 0:00:07]} 49. Kf2 {[%clk 0:00:07]}  h3 {[%clk 0:00:07]} 50. Qxh3 {[%clk 0:00:07]} 1-0


[Site "https://www.chess.com"]